fUST/lending_fUST_20260422
["ID","MTS","AMOUNT","RATE_DAILY","PERIOD"]
[420972402,1776834647613,-791.0,0.00018428,2]
[420972403,1776834647623,-500.0,0.00018444,2]
[420972404,1776834647632,-537.6845,0.00018444,2]
[420972405,1776834647641,-500.0,0.00018444,2]
[420972406,1776834647650,-500.0,0.00018444,2]
[420972407,1776834647659,-500.0,0.00018444,2]
[420972408,1776834647668,-500.0,0.00018444,2]
[420972409,1776834647677,-500.0,0.00018444,2]
[420972410,1776834647687,-500.0,0.00018444,2]
[420972411,1776834647696,-500.0,0.00018444,2]
[420972412,1776834647705,-500.0,0.00018444,2]
[420972413,1776834647714,-605.0699775,0.00018444,2]
[420972414,1776834647723,-2150.738,0.00018444,2]
[420972415,1776834647732,-557.5788265,0.00018499,2]
[420972416,1776834647741,-578.20924308,0.00018554,2]
[420972417,1776834647750,-599.60298507,0.00018609,2]
[420972418,1776834647759,-345.32035377,0.00018664,2]
[420972419,1776834647768,-630.44,0.00018785,2]
[420972420,1776834647778,-252.19,0.00018887,2]
[420972421,1776834647787,-1063.0,0.000189,2]
[420972422,1776834647797,-2230.315306,0.00018992,2]
[420972423,1776834647806,-173.0,0.00019,2]
[420972424,1776834647815,-631.72430245,0.00019,2]
[420972425,1776834647824,-524.549,0.00019043,2]
[420972426,1776834647833,-735.52,0.00019193,2]
[420972427,1776834647843,-151.0,0.00019244,2]
[420972428,1776834647852,-458.6525357,0.00019247,2]
[420972429,1776834647861,-166.5740591,0.00019247,2]
[420972430,1776834647870,-196.3514541,0.00019247,2]
[420972431,1776834647878,-455.7675055,0.00019247,2]
[420972432,1776834647888,-151.0,0.00019247,2]
[420972433,1776834647897,-442.41936104,0.0001928,2]
[420972434,1776834647906,-500.0,0.0001928,2]
[420972435,1776834647915,-500.0,0.0001928,2]
[420972436,1776834647924,-500.0,0.0001928,2]
[420972437,1776834647934,-573.99181435,0.0001928,2]
[420972438,1776834647942,-500.0,0.0001928,2]
[420972439,1776834647951,-500.0,0.0001928,2]
[420972440,1776834647960,-500.0,0.0001928,2]
[420972441,1776834647969,-500.0,0.0001928,2]
[420972442,1776834647978,-500.0,0.0001928,2]
[420972443,1776834647988,-500.0,0.0001928,2]
[420972444,1776834647997,-159.69355272,0.0001928,2]
[420972445,1776834648006,-28869.89411315,0.00019281,2]
[420972446,1776834648018,-479.84473846,0.00019281,2]
[420972450,1776835294376,1420.0,0.0001099,30]
[420972490,1776835832132,-3141.08718501,0.00010865,2]
[420972492,1776835832142,-572.0,0.00010865,2]
[420972494,1776835832151,-5000.0,0.00010975,2]
[420972496,1776835832160,-161.42747006,0.00011142,2]
[420972498,1776835832169,-300.0,0.00011197,2]
[420972500,1776835832178,-1200.0,0.0001142,2]
[420972502,1776835832187,-300.0,0.00011421,2]
[420972505,1776835832196,-300.0,0.00011421,2]
[420972508,1776835832205,-300.0,0.00011421,2]
[420972510,1776835832214,-300.0,0.00011421,2]
[420972513,1776835832223,-300.0,0.00011421,2]
[420972516,1776835832232,-300.0,0.00011421,2]
[420972518,1776835832241,-300.0,0.00011421,2]
[420972522,1776835832251,-300.0,0.00011421,2]
[420972526,1776835832261,-300.0,0.00011421,2]
[420972530,1776835832270,-300.0,0.00011421,2]
[420972533,1776835832280,-300.0,0.00011421,2]
[420972535,1776835832289,-300.0,0.00011421,2]
[420972537,1776835832299,-300.0,0.00011421,2]
[420972539,1776835832308,-300.0,0.00011421,2]
[420972541,1776835832318,-300.0,0.00011421,2]
[420972543,1776835832327,-270.63669747,0.0001154,2]
[420972545,1776835832337,-322.0,0.00012302,2]
[420972547,1776835832346,-190.48441467,0.00013142,2]
[420972548,1776835832355,-209.81923719,0.00013598,2]
[420972550,1776835832365,-1000.0,0.00013699,2]
[420972552,1776835832374,-3686.9146343,0.00014869,2]
[420972554,1776835832383,-219.54135929,0.00015142,2]
[420972556,1776835832392,-248.5983039,0.00017142,2]
[420972558,1776835832401,-441.0,0.0001726,2]
[420972560,1776835832410,-184.0,0.0001726,2]
[420972562,1776835832420,-600.0,0.00017605,2]
[420972564,1776835832429,-174.74,0.00017611,2]
[420972566,1776835832438,-239.0,0.00017616,3]
[420972568,1776835832447,-2150.738,0.00018336,2]
[420972570,1776835832457,-2150.738,0.00018884,2]
[420972589,1776835832628,-152.0,0.00018891,7]
[420972592,1776835832649,-152.0,0.00018891,7]
[420972594,1776835832659,-152.0,0.00018891,7]
[420972596,1776835832669,-152.0,0.00018891,7]
[420972597,1776835832678,-152.0,0.00018891,7]
[420972599,1776835832688,-152.0,0.00018891,7]
[420972601,1776835832697,-152.0,0.00018891,7]
[420972603,1776835832707,-152.0,0.00018925,7]
[420972605,1776835832716,-152.0,0.00018925,7]
[420972607,1776835832725,-152.0,0.00018925,7]
[420972609,1776835832735,-152.0,0.00018925,7]
[420972611,1776835832744,-152.0,0.00018925,7]
[420972613,1776835832754,-152.0,0.00018925,7]
[420972614,1776835832764,-152.0,0.00018925,7]
[420972616,1776835832774,-152.0,0.00018925,7]
[420972618,1776835832783,-152.0,0.00018925,7]
[420972620,1776835832793,-152.0,0.00018925,7]
[420972622,1776835832805,-152.0,0.00018925,7]
[420972624,1776835832814,-152.0,0.00018925,7]
[420972626,1776835832823,-152.0,0.00018943,7]
[420972628,1776835832833,-152.0,0.00018943,7]
[420972630,1776835832842,-152.0,0.00018943,7]
[420972632,1776835832851,-152.0,0.00018943,7]
[420972634,1776835832862,-152.0,0.00018943,7]
[420972636,1776835832872,-152.0,0.00018943,7]
[420972638,1776835832881,-152.0,0.00018943,7]
[420972640,1776835832890,-152.0,0.00018943,7]
[420972642,1776835832900,-152.0,0.00018943,7]
[420972644,1776835832910,-152.0,0.00018943,7]
[420972646,1776835832919,-152.0,0.00018943,7]
[420972648,1776835832929,-152.0,0.00018943,7]
[420972650,1776835832938,-152.0,0.00018943,7]
[420972652,1776835832947,-152.0,0.00018943,7]
[420972654,1776835832957,-152.0,0.00018943,7]
[420972656,1776835832966,-152.0,0.00018943,7]
[420972658,1776835832975,-460.84851438,0.00019,2]
[420972660,1776835832984,-613.36835978,0.00019,2]
[420972662,1776835832993,-1843.39405752,0.00019,2]
[420972664,1776835833003,-312.25,0.00019,2]
[420972666,1776835833012,-3392.219115,0.00019046,2]
[420972668,1776835833021,-224.90711096,0.00019079,2]
[420972670,1776835833030,-500.0,0.00019079,2]
[420972672,1776835833039,-500.0,0.00019079,2]
[420972674,1776835833050,-379.26878199,0.00019079,2]
[420972676,1776835833058,-500.0,0.00019079,2]
[420972677,1776835833067,-180.08652618,0.00019079,2]
[420972679,1776835833076,-318.11666748,0.0001908,2]
[420972681,1776835833086,-296.20747066,0.0001908,2]
[420972683,1776835833095,-500.0,0.0001908,2]
[420972685,1776835833104,-500.0,0.0001908,2]
[420972687,1776835833113,-500.0,0.0001908,2]
[420972689,1776835833122,-500.0,0.0001908,2]
[420972691,1776835833131,-500.0,0.0001908,2]
[420972693,1776835833140,-511.45375518,0.0001908,2]
[420972695,1776835833150,-500.0,0.0001908,2]
[420972697,1776835833159,-500.0,0.0001908,2]
[420972699,1776835833168,-500.0,0.0001908,2]
[420972701,1776835833178,-500.0,0.0001908,2]
[420972703,1776835833188,-14924.42766227,0.00019081,2]
[420972823,1776835840479,-152.0,0.00018925,7]
[420972824,1776835840489,-152.0,0.00018925,7]
[420972825,1776835840500,-152.0,0.00018943,7]
[420972826,1776835840510,-152.0,0.00018943,7]
[420972827,1776835840520,-363.60071093,0.00019081,2]
[420972876,1776835843049,-3355.05045679,0.00019081,2]
[420972889,1776835843160,-1240.0,0.00019081,2]
[420972891,1776835843171,-256.2,0.00019081,2]
[420973043,1776835846141,-6455.12736062,0.00019081,2]
[420973044,1776835846152,-106406.16000184,0.00019081,2]
[420973045,1776835846162,-166284.71839594,0.00019081,2]
[420973046,1776835846173,-2307.0,0.00019081,2]
[420973055,1776836274857,959667.45194356,0.0002465,120]
[420973057,1776836453798,20000.0,0.00024649,120]
[420973063,1776837032127,-5000.0,0.00013426,10]
[420973064,1776837032136,-613.0,0.00013562,2]
[420973065,1776837032145,-164.06180589,0.00013562,2]
[420973066,1776837032154,-1000.0,0.00013699,2]
[420973068,1776837032163,-1032.93819411,0.00013829,2]
[420973125,1776837038824,-167.06180589,0.00013829,2]
[420973126,1776837038834,-300.0,0.0001383,2]
[420973127,1776837038845,-300.0,0.0001383,2]
[420973128,1776837038854,-300.0,0.0001383,2]
[420973129,1776837038864,-300.0,0.0001383,2]
[420973130,1776837038873,-160.0,0.00013831,2]
[420973131,1776837038883,-300.0,0.00013832,2]
[420973132,1776837038893,-300.0,0.00013832,2]
[420973133,1776837038903,-300.0,0.00013832,2]
[420973134,1776837038912,-300.0,0.00013832,2]
[420973135,1776837038923,-139.43114866,0.00013832,2]
[420973136,1776837039035,-160.56885134,0.00013832,2]
[420973137,1776837039045,-300.0,0.00013832,2]
[420973138,1776837039054,-300.0,0.00013832,2]
[420973139,1776837039064,-300.0,0.00013832,2]
[420973140,1776837039073,-300.0,0.00013832,2]
[420973141,1776837039082,-129.18295459,0.00013832,2]
[420973142,1776837039094,-170.81704541,0.00013832,2]
[420973143,1776837039104,-300.0,0.00013832,2]
[420973144,1776837039113,-300.0,0.00013832,2]
[420973145,1776837039122,-300.0,0.00013832,2]
[420973146,1776837039131,-300.0,0.00013832,2]
[420973147,1776837039141,-300.0,0.00013832,2]
[420973149,1776837039150,-600.0,0.00014108,2]
[420973151,1776837039159,-577.55986131,0.00014108,10]
[420973153,1776837039169,-161.0,0.00014904,3]
[420973155,1776837039178,-300.0,0.00015154,2]
[420973157,1776837039187,-720.0,0.00015518,2]
[420973159,1776837039196,-193.59293095,0.00015562,2]
[420973161,1776837039205,-183.4846255,0.00015918,2]
[420973163,1776837039214,-864.0,0.0001707,2]
[420973164,1776837039223,-184.0,0.00017269,2]
[420973165,1776837039232,-441.0,0.00017269,2]
[420973166,1776837039240,-150.373,0.00017269,2]
[420973167,1776837039250,-150.655,0.00017269,2]
[420973168,1776837039259,-150.358,0.00017269,2]
[420973169,1776837039268,-150.0,0.00017269,2]
[420973170,1776837039277,-223.12405601,0.00017562,2]
[420973171,1776837039286,-161.70864651,0.00017641,2]
[420973172,1776837039296,-2150.738,0.0001831,2]
[420973173,1776837039305,-227.378766,0.00018426,2]
[420973174,1776837039314,-500.0,0.0001843,2]
[420973175,1776837039323,-500.0,0.0001843,2]
[420973176,1776837039332,-500.0,0.0001843,2]
[420973177,1776837039341,-500.0,0.0001843,2]
[420973178,1776837039350,-500.0,0.0001843,2]
[420973179,1776837039359,-500.0,0.0001843,2]
[420973180,1776837039368,-500.0,0.0001843,2]
[420973181,1776837039377,-500.0,0.0001843,2]
[420973182,1776837039386,-500.0,0.0001843,2]
[420973183,1776837039395,-500.0,0.0001843,2]
[420973184,1776837039404,-215.44251611,0.0001843,2]
[420973185,1776837039413,-500.0,0.00018431,2]
[420973186,1776837039422,-535.89710033,0.00018431,2]
[420973187,1776837039431,-500.0,0.00018431,2]
[420973188,1776837039440,-500.0,0.00018431,2]
[420973189,1776837039449,-283.03547034,0.00018431,2]
[420973190,1776837039461,-216.96452966,0.00018431,2]
[420973191,1776837039470,-500.0,0.00018431,2]
[420973192,1776837039479,-500.0,0.00018431,2]
[420973193,1776837039488,-500.0,0.00018431,2]
[420973194,1776837039497,-500.0,0.00018431,2]
[420973195,1776837039507,-277.15512399,0.00018431,2]
[420973196,1776837039516,-162.27337966,0.00018431,2]
[420973197,1776837039525,-508.22092011,0.00018431,2]
[420973198,1776837039535,-500.0,0.00018431,2]
[420973199,1776837039544,-209.59975309,0.00018431,2]
[420973200,1776837039554,-500.0,0.00018431,2]
[420973201,1776837039563,-500.0,0.00018431,2]
[420973202,1776837039573,-500.0,0.00018431,2]
[420973203,1776837039583,-500.0,0.00018431,2]
[420973204,1776837039592,-500.0,0.00018431,2]
[420973205,1776837039601,-500.0,0.00018431,2]
[420973206,1776837039611,-500.0,0.00018431,2]
[420973207,1776837039620,-500.0,0.00018431,2]
[420973208,1776837039630,-500.0,0.00018431,2]
[420973209,1776837039639,-500.0,0.00018431,2]
[420973210,1776837039649,-500.0,0.00018431,2]
[420973211,1776837039658,-500.0,0.00018431,2]
[420973212,1776837039667,-500.0,0.00018431,2]
[420973213,1776837039677,-500.0,0.00018431,2]
[420973214,1776837039686,-500.0,0.00018431,2]
[420973215,1776837039695,-500.0,0.00018431,2]
[420973216,1776837039704,-500.0,0.00018431,2]
[420973217,1776837039713,-500.0,0.00018431,2]
[420973219,1776837039723,-500.0,0.00018431,2]
[420973221,1776837039732,-603.69672481,0.00018431,2]
[420973222,1776837039742,-500.0,0.00018431,2]
[420973223,1776837039751,-500.0,0.00018431,2]
[420973224,1776837039761,-500.0,0.00018431,2]
[420973225,1776837039771,-500.0,0.00018431,2]
[420973226,1776837039781,-500.0,0.00018431,2]
[420973227,1776837039790,-500.0,0.00018431,2]
[420973228,1776837039800,-610.294326,0.00018431,2]
[420973229,1776837039810,-500.0,0.00018431,2]
[420973230,1776837039820,-500.0,0.00018431,2]
[420973231,1776837039830,-500.0,0.00018431,2]
[420973232,1776837039839,-500.0,0.00018431,2]
[420973233,1776837039848,-500.0,0.00018431,2]
[420973234,1776837039857,-500.0,0.00018431,2]
[420973235,1776837039867,-500.0,0.00018431,2]
[420973236,1776837039876,-500.0,0.00018431,2]
[420973237,1776837039885,-500.0,0.00018431,2]
[420973238,1776837039895,-500.0,0.00018431,2]
[420973239,1776837039906,-500.0,0.00018431,2]
[420973240,1776837039915,-500.0,0.00018431,2]
[420973241,1776837039924,-500.0,0.00018431,2]
[420973242,1776837039934,-500.0,0.00018431,2]
[420973244,1776837039943,-500.0,0.00018431,2]
[420973246,1776837039953,-500.0,0.00018431,2]
[420973247,1776837039962,-500.0,0.00018431,2]
[420973249,1776837039971,-500.0,0.00018431,2]
[420973251,1776837039981,-500.0,0.00018431,2]
[420973253,1776837039990,-500.0,0.00018431,2]
[420973254,1776837039999,-500.0,0.00018431,2]
[420973255,1776837040008,-500.0,0.00018431,2]
[420973256,1776837040018,-500.0,0.00018431,2]
[420973257,1776837040027,-500.0,0.00018431,2]
[420973258,1776837040037,-500.0,0.00018431,2]
[420973260,1776837040047,-500.0,0.00018431,2]
[420973261,1776837040057,-500.0,0.00018431,2]
[420973262,1776837040066,-500.0,0.00018431,2]
[420973263,1776837040075,-500.0,0.00018431,2]
[420973264,1776837040085,-500.0,0.00018431,2]
[420973265,1776837040094,-500.0,0.00018431,2]
[420973266,1776837040104,-500.0,0.00018431,2]
[420973267,1776837040113,-500.0,0.00018431,2]
[420973268,1776837040123,-500.0,0.00018431,2]
[420973269,1776837040133,-500.0,0.00018431,2]
[420973270,1776837040143,-500.0,0.00018431,2]
[420973271,1776837040153,-500.0,0.00018431,2]
[420973272,1776837040163,-500.0,0.00018431,2]
[420973273,1776837040172,-500.0,0.00018431,2]
[420973274,1776837040182,-500.0,0.00018431,2]
[420973275,1776837040191,-500.0,0.00018431,2]
[420973276,1776837040200,-200.0,0.00018431,2]
[420973277,1776837040209,-500.0,0.00018431,2]
[420973278,1776837040218,-500.0,0.00018431,2]
[420973279,1776837040227,-500.0,0.00018431,2]
[420973280,1776837040237,-500.0,0.00018431,2]
[420973281,1776837040246,-500.0,0.00018432,2]
[420973282,1776837040255,-844.0,0.00018432,2]
[420973283,1776837040264,-500.0,0.00018432,2]
[420973284,1776837040274,-844.0,0.00018432,2]
[420973285,1776837040283,-500.0,0.00018432,2]
[420973286,1776837040292,-844.0,0.00018432,2]
[420973287,1776837040304,-500.0,0.00018432,2]
[420973289,1776837040314,-844.0,0.00018432,2]
[420973290,1776837040323,-844.0,0.00018432,2]
[420973291,1776837040332,-844.0,0.00018432,2]
[420973292,1776837040341,-844.0,0.00018432,2]
[420973293,1776837040351,-500.0,0.00018432,2]
[420973294,1776837040360,-844.0,0.00018432,2]
[420973295,1776837040369,-844.0,0.00018432,2]
[420973296,1776837040379,-844.0,0.00018432,2]
[420973297,1776837040388,-500.0,0.00018432,2]
[420973298,1776837040397,-844.0,0.00018432,2]
[420973299,1776837040407,-500.0,0.00018432,2]
[420973300,1776837040416,-844.0,0.00018432,2]
[420973301,1776837040425,-500.0,0.00018432,2]
[420973302,1776837040436,-844.0,0.00018432,2]
[420973303,1776837040445,-500.0,0.00018432,2]
[420973304,1776837040454,-844.0,0.00018432,2]
[420973305,1776837040464,-206.99402107,0.00018432,2]
[420973306,1776837040474,-844.0,0.00018432,2]
[420973307,1776837040484,-844.0,0.00018432,2]
[420973308,1776837040493,-844.0,0.00018432,2]
[420973309,1776837040503,-844.0,0.00018432,2]
[420973310,1776837040512,-844.0,0.00018432,2]
[420973312,1776837040521,-844.0,0.00018432,2]
[420973313,1776837040530,-844.0,0.00018432,2]
[420973314,1776837040540,-844.0,0.00018432,2]
[420973315,1776837040550,-844.0,0.00018432,2]
[420973316,1776837040560,-865.55248233,0.00018432,2]
[420973317,1776837040570,-1299.93323862,0.00018573,2]
[420973318,1776837040579,-253.60033262,0.00018605,2]
[420973319,1776837040589,-500.0,0.00018605,2]
[420973320,1776837040599,-400.1231346,0.00018605,2]
[420973321,1776837040608,-500.0,0.00018605,2]
[420973322,1776837040618,-500.0,0.00018605,2]
[420973323,1776837040628,-500.0,0.00018605,2]
[420973324,1776837040638,-500.0,0.00018605,2]
[420973325,1776837040647,-500.0,0.00018605,2]
[420973326,1776837040657,-500.0,0.00018605,2]
[420973327,1776837040666,-500.0,0.00018605,2]
[420973328,1776837040675,-500.0,0.00018605,2]
[420973329,1776837040685,-579.21014389,0.00018605,2]
[420973330,1776837040695,-500.0,0.00018605,2]
[420973331,1776837040704,-500.0,0.00018605,2]
[420973332,1776837040715,-500.0,0.00018605,2]
[420973333,1776837040725,-36379.91538305,0.00018606,2]
[420973334,1776837040905,-1211.44172772,0.00018606,2]
[420973335,1776837040932,-1202.22657072,0.00018606,2]
[420973336,1776837040947,-396.27900709,0.00018606,2]
[420973337,1776837040959,-2643.83525264,0.00018606,2]
[420973338,1776837040970,-1175.66510949,0.00018606,2]
[420973360,1776837046965,-438.87021569,0.0001842,10]
[420973362,1776837046977,-4561.12978431,0.0001842,10]
[420973364,1776837046986,-24017.23944012,0.00018606,2]
[420973380,1776837047124,-388.62725706,0.00018606,2]
[420973382,1776837047136,-300.0,0.00018606,2]
[420973384,1776837047148,-5498.16624519,0.00018606,2]
[420973770,1776837350529,168.720041,0.00015855,120]
[420973771,1776837787605,532.75,0.00024658,120]
[420973834,1776838232159,-604.25309705,0.00012896,10]
[420973839,1776838232212,-4395.74690295,0.00012896,10]
[420973841,1776838232222,-1200.0,0.00013129,2]
[420973843,1776838232231,-606.0,0.00013129,2]
[420973845,1776838232240,-925.6223793,0.0001313,2]
[420973847,1776838232249,-176.03322326,0.00013292,2]
[420973849,1776838232258,-300.0,0.00013329,2]
[420973851,1776838232267,-300.0,0.00013329,2]
[420973853,1776838232276,-300.0,0.00013329,2]
[420973855,1776838232285,-3235.07620426,0.0001333,2]
[420973857,1776838232294,-1000.0,0.00013699,2]
[420973859,1776838232303,-4917.84340883,0.0001373,2]
[420973860,1776838232312,-3682.84402139,0.0001383,2]
[420973863,1776838232323,-1199.1085576,0.0001383,2]
[420974126,1776838238450,-877.27443217,0.0001383,2]
[420974127,1776838238460,-300.0,0.00013832,2]
[420974128,1776838238469,-300.0,0.00013832,2]
[420974129,1776838238478,-300.0,0.00013832,2]
[420974130,1776838238487,-300.0,0.00013832,2]
[420974131,1776838238496,-41.39261458,0.00013832,2]
[420974132,1776838238508,-258.60738542,0.00013832,2]
[420974133,1776838238517,-300.0,0.00013832,2]
[420974134,1776838238526,-144.80734335,0.00013832,2]
[420974135,1776838238537,-155.19265665,0.00013832,2]
[420974136,1776838238546,-300.0,0.00013832,2]
[420974137,1776838238555,-300.0,0.00013832,2]
[420974138,1776838238564,-300.0,0.00013832,2]
[420974139,1776838238574,-300.0,0.00013832,2]
[420974140,1776838238582,-300.0,0.00013832,2]
[420974141,1776838238592,-300.0,0.00013832,2]
[420974142,1776838238601,-300.0,0.00013832,2]
[420974143,1776838238610,-300.0,0.00013832,2]
[420974144,1776838238620,-160.0,0.0001386,2]
[420974145,1776838238629,-424.78552794,0.0001403,2]
[420974146,1776838238644,-6175.82508556,0.0001403,2]
[420974147,1776838238654,-500.0,0.00014999,2]
[420974148,1776838238663,-13428.539853,0.00015,2]
[420974149,1776838238673,-207.71920345,0.00015292,2]
[420974150,1776838238682,-1000.0,0.00015293,2]
[420974151,1776838238691,-353.754298,0.00015836,2]
[420974152,1776838238700,-168.720041,0.00015855,2]
[420974153,1776838238710,-353.754298,0.00016503,2]
[420974154,1776838238719,-353.754298,0.00017169,2]
[420974155,1776838238728,-4147.63662942,0.00017219,2]
[420974156,1776838238737,-7366.20265386,0.00017219,2]
[420974157,1776838238746,-500.0,0.00017233,2]
[420974158,1776838238755,-500.0,0.00017233,2]
[420974159,1776838238764,-281.503,0.00017269,2]
[420974160,1776838238774,-441.0,0.00017269,2]
[420974161,1776838238784,-184.0,0.00017269,2]
[420974162,1776838238794,-239.40518364,0.00017292,2]
[420974163,1776838238804,-171.01062976,0.00017355,2]
[420974165,1776838238813,-325.130554,0.00017604,2]
[420974167,1776838238822,-353.754298,0.00017836,2]
[420974169,1776838238832,-500.0,0.00017873,2]
[420974171,1776838238842,-502.55919052,0.00017873,2]
[420974173,1776838238851,-343.16710605,0.00017873,2]
[420974175,1776838238861,-485.06208764,0.00017873,2]
[420974177,1776838238870,-500.0,0.00017873,2]
[420974178,1776838238879,-500.0,0.00017873,2]
[420974179,1776838238888,-187.796677,0.00017873,2]
[420974180,1776838238897,-159.84141829,0.00017873,2]
[420974181,1776838238906,-280.08619422,0.00017899,2]
[420974182,1776838238915,-500.0,0.00017899,2]
[420974183,1776838238925,-500.0,0.00017899,2]
[420974184,1776838238934,-177.52023284,0.00017899,2]
[420974185,1776838238943,-500.0,0.00017899,2]
[420974186,1776838238952,-500.0,0.00017899,2]
[420974187,1776838238962,-500.0,0.00017899,2]
[420974188,1776838238971,-500.0,0.00017899,2]
[420974189,1776838238980,-605.44710072,0.00017899,2]
[420974190,1776838238989,-316.54420339,0.00017899,2]
[420974191,1776838239002,-183.45579661,0.00017899,2]
[420974192,1776838239011,-500.0,0.00017899,2]
[420974193,1776838239020,-5323.42772298,0.000179,2]
[420974288,1776838246643,-21424.25465283,0.000179,2]
[420974294,1776838247132,-32378.01449677,0.000179,2]
[420974303,1776838528938,959.4831929,0.00024657,120]
[420974304,1776838540868,3089.16,6e-05,10]
[420974308,1776839074780,500.6077,0.00024658,120]
[420974331,1776839190213,1000.0,0.00024658,120]
[420974335,1776839390866,537.99,0.00024633,120]
[420974368,1776839432494,-403.92061537,0.00013027,10]
[420974370,1776839432506,-4596.07938463,0.00013027,10]
[420974372,1776839432516,-610.0,0.00013343,2]
[420974374,1776839432525,-167.00960183,0.00013344,2]
[420974376,1776839432534,-1000.0,0.00013699,2]
[420974378,1776839432543,-300.0,0.00013832,2]
[420974380,1776839432552,-300.0,0.00013832,2]
[420974382,1776839432563,-300.0,0.00013832,2]
[420974384,1776839432572,-300.0,0.00013832,2]
[420974385,1776839432581,-300.0,0.00013832,2]
[420974388,1776839432591,-300.0,0.00013832,2]
[420974389,1776839432600,-300.0,0.00013832,2]
[420974392,1776839432610,-300.0,0.00013832,2]
[420974393,1776839432619,-300.0,0.00013832,2]
[420974395,1776839432628,-300.0,0.00013832,2]
[420974398,1776839432640,-300.0,0.00013832,2]
[420974399,1776839432650,-300.0,0.00013832,2]
[420974401,1776839432659,-167.89394046,0.00013832,2]
[420974405,1776839432681,-132.10605954,0.00013832,2]
[420974407,1776839432690,-300.0,0.00013832,2]
[420974409,1776839432699,-300.0,0.00013832,2]
[420974410,1776839432708,-181.45640177,0.00014022,2]
[420974412,1776839432717,-600.0,0.00014108,2]
[420974414,1776839432726,-535.551,0.00014658,2]
[420974416,1776839432735,-2451.01996569,0.00014763,2]
[420974418,1776839432744,-197.07133017,0.00015344,2]
[420974420,1776839432753,-720.0,0.00015518,2]
[420974422,1776839432762,-264.4435033,0.0001556,2]
[420974519,1776839443724,-29.69873565,0.00015404,10]
[420974524,1776839446662,-4970.30126435,0.00015404,10]
[420974525,1776839446671,-813.7815081,0.0001556,2]
[420974526,1776839446681,-155.0,0.000156,2]
[420974527,1776839446691,-298.20012073,0.00015952,2]
[420974528,1776839446700,-669.33075695,0.00016358,2]
[420974529,1776839446709,-454.5307909,0.00016782,2]
[420974530,1776839446719,-277.27728751,0.00016792,2]
[420974531,1776839446728,-1108.00004091,0.00016792,2]
[420974532,1776839446738,-154.0,0.000169,2]
[420974533,1776839446747,-154.0,0.000169,2]
[420974534,1776839446757,-155.65005472,0.000169,2]
[420974535,1776839446766,-864.0,0.0001707,2]
[420974536,1776839446776,-500.0,0.0001708,2]
[420974537,1776839446786,-245.51108368,0.0001708,2]
[420974538,1776839446795,-500.0,0.0001708,2]
[420974539,1776839446805,-169.13650246,0.0001708,2]
[420974540,1776839446814,-925.7950394,0.00017081,2]
[420974541,1776839446824,-1199.3611719,0.00017081,2]
[420974542,1776839446833,-3944.02944068,0.00017081,2]
[420974543,1776839499926,-400.31858,0.00012,2]
[420974548,1776839882343,10000.0,0.00024658,120]
[420974549,1776839897443,10000.0,0.00024658,120]
[420974550,1776839907434,10000.0,0.00024658,120]
[420974551,1776839915497,10000.0,0.00024658,120]
[420974552,1776839924331,10000.0,0.00024658,120]